[Event "Titled Tuesday Blitz June 13 Early 2023"]
[White "Acikel, Mert"]
[Black "Zavgorodniy, Sergiy"]
[WhiteFideId "12956465"]
[BlackFideId "14110148"]
[WhiteElo "2097"]
[BlackElo "2402"]
[Result "0-1"]
[Round "3"]
[TimeControl "180+2"]
[Date "2023.06.13"]
[WhiteClock "0:01:41"]
[BlackClock "0:02:39"]
[Board "154"]

1. e4 {[%clk 0:03:00]}  c6 {[%clk 0:02:59]} 2. Nc3 {[%clk 0:03:00]}  d5 {[%clk 0:03:00]} 3. Nf3 {[%clk 0:03:01]}  Bg4 {[%clk 0:03:00]} 4. h3 {[%clk 0:03:01]}  Bxf3 {[%clk 0:03:00]} 5. Qxf3 {[%clk 0:03:02]}  dxe4 {[%clk 0:03:00]} 6. Nxe4 {[%clk 0:03:01]}  Nd7 {[%clk 0:03:00]} 7. d4 {[%clk 0:03:00]}  Ngf6 {[%clk 0:02:59]} 8. Nxf6+ {[%clk 0:03:01]}  Nxf6 {[%clk 0:03:00]} 9. c3 {[%clk 0:03:02]}  e6 {[%clk 0:03:01]} 10. Be2 {[%clk 0:03:00]}  Be7 {[%clk 0:03:01]} 11. O-O {[%clk 0:03:00]}  O-O {[%clk 0:03:01]} 12. Rd1 {[%clk 0:03:00]}  Nd5 {[%clk 0:03:01]} 13. Bd2 {[%clk 0:03:00]}  Bg5 {[%clk 0:03:01]} 14. Rac1 {[%clk 0:02:57]}  Bxd2 {[%clk 0:03:01]} 15. Rxd2 {[%clk 0:02:58]}  Qg5 {[%clk 0:03:01]} 16. Rcd1 {[%clk 0:02:53]}  b5 {[%clk 0:03:00]} 17. Bf1 {[%clk 0:02:52]}  a5 {[%clk 0:02:59]} 18. Kh1 {[%clk 0:02:41]}  a4 {[%clk 0:02:58]} 19. g3 {[%clk 0:02:34]}  a3 {[%clk 0:02:53]} 20. b3 {[%clk 0:02:33]}  b4 {[%clk 0:02:53]} 21. c4 {[%clk 0:02:28]}  Nc3 {[%clk 0:02:53]} 22. Qxc6 {[%clk 0:02:06]}  Nxd1 {[%clk 0:02:52]} 23. Rxd1 {[%clk 0:02:06]}  Rac8 {[%clk 0:02:46]} 24. Qe4 {[%clk 0:02:04]}  Rfd8 {[%clk 0:02:44]} 25. Bg2 {[%clk 0:02:01]}  Qf6 {[%clk 0:02:42]} 26. Qe3 {[%clk 0:01:58]}  Rc7 {[%clk 0:02:42]} 27. Rd3 {[%clk 0:01:55]}  Rcd7 {[%clk 0:02:42]} 28. c5 {[%clk 0:01:41]}  Rxd4 {[%clk 0:02:39]} 0-1


[Site "https://www.chess.com"]

[Event "Titled Tuesday Blitz June 13 Early 2023"]
[White "le-castor-faineant"]
[Black "Parondo, Rolly"]
[BlackFideId "5217407"]
[WhiteElo "2200"]
[BlackElo "2141"]
[Result "0-1"]
[Round "3"]
[TimeControl "180+2"]
[Date "2023.06.13"]
[WhiteClock "0:00:07"]
[BlackClock "0:00:19"]
[Board "155"]

1. e4 {[%clk 0:03:00]}  c5 {[%clk 0:02:58]} 2. Nf3 {[%clk 0:03:01]}  g6 {[%clk 0:02:56]} 3. c3 {[%clk 0:03:00]}  Bg7 {[%clk 0:02:54]} 4. d4 {[%clk 0:03:00]}  cxd4 {[%clk 0:02:55]} 5. cxd4 {[%clk 0:03:01]}  d5 {[%clk 0:02:55]} 6. e5 {[%clk 0:03:00]}  Bg4 {[%clk 0:02:50]} 7. Be2 {[%clk 0:02:58]}  e6 {[%clk 0:02:44]} 8. O-O {[%clk 0:02:58]}  Ne7 {[%clk 0:02:44]} 9. Nc3 {[%clk 0:02:56]}  O-O {[%clk 0:02:43]} 10. Bg5 {[%clk 0:02:55]}  h6 {[%clk 0:02:42]} 11. Bh4 {[%clk 0:02:38]}  a6 {[%clk 0:02:38]} 12. Qd2 {[%clk 0:02:38]}  Bxf3 {[%clk 0:02:28]} 13. Bxf3 {[%clk 0:02:37]}  Qd7 {[%clk 0:02:26]} 14. Bf6 {[%clk 0:02:01]}  b5 {[%clk 0:02:20]} 15. Ne2 {[%clk 0:01:45]}  Nbc6 {[%clk 0:02:14]} 16. Rac1 {[%clk 0:01:44]}  Rfc8 {[%clk 0:02:13]} 17. Rc5 {[%clk 0:01:31]}  Bf8 {[%clk 0:02:06]} 18. Rfc1 {[%clk 0:01:29]}  Nf5 {[%clk 0:01:42]} 19. g4 {[%clk 0:01:06]}  Nfe7 {[%clk 0:01:25]} 20. Nf4 {[%clk 0:00:37]}  Na7 {[%clk 0:01:17]} 21. Nd3 {[%clk 0:00:34]}  Kh7 {[%clk 0:01:04]} 22. Rxc8 {[%clk 0:00:31]}  Rxc8 {[%clk 0:01:05]} 23. Rxc8 {[%clk 0:00:29]}  Naxc8 {[%clk 0:01:06]} 24. Nc5 {[%clk 0:00:29]}  Qa7 {[%clk 0:01:05]} 25. Qa5 {[%clk 0:00:26]}  Nc6 {[%clk 0:00:55]} 26. Qxa6 {[%clk 0:00:22]}  Qxa6 {[%clk 0:00:55]} 27. Nxa6 {[%clk 0:00:22]}  Nxd4 {[%clk 0:00:56]} 28. Bd1 {[%clk 0:00:21]}  Na7 {[%clk 0:00:51]} 29. Nc7 {[%clk 0:00:18]}  Nac6 {[%clk 0:00:46]} 30. a4 {[%clk 0:00:15]}  bxa4 {[%clk 0:00:45]} 31. Bxa4 {[%clk 0:00:16]}  Bg7 {[%clk 0:00:46]} 32. g5 {[%clk 0:00:13]}  Nxe5 {[%clk 0:00:45]} 33. Bxg7 {[%clk 0:00:11]}  Kxg7 {[%clk 0:00:45]} 34. gxh6+ {[%clk 0:00:11]}  Kxh6 {[%clk 0:00:46]} 35. b4 {[%clk 0:00:12]}  Ne2+ {[%clk 0:00:34]} 36. Kf1 {[%clk 0:00:11]}  Nc3 {[%clk 0:00:34]} 37. Be8 {[%clk 0:00:10]}  Kg7 {[%clk 0:00:28]} 38. b5 {[%clk 0:00:10]}  Na4 {[%clk 0:00:29]} 39. Na8 {[%clk 0:00:09]}  Nc4 {[%clk 0:00:29]} 40. Bc6 {[%clk 0:00:09]}  Kf8 {[%clk 0:00:28]} 41. Ke2 {[%clk 0:00:09]}  Ke7 {[%clk 0:00:28]} 42. Kd3 {[%clk 0:00:10]}  Ne5+ {[%clk 0:00:26]} 43. Kd4 {[%clk 0:00:09]}  Kd6 {[%clk 0:00:21]} 44. Be8 {[%clk 0:00:07]}  Nc5 {[%clk 0:00:19]} 45. b6 {[%clk 0:00:07]}  Nb3+ {[%clk 0:00:18]} 46. Kc3 {[%clk 0:00:07]}  Na5 {[%clk 0:00:19]} 47. Kb4 {[%clk 0:00:07]}  Nb7 {[%clk 0:00:19]} 48. Kb5 {[%clk 0:00:07]}  d4 {[%clk 0:00:17]} 49. Ka6 {[%clk 0:00:07]}  Nc5+ {[%clk 0:00:18]} 50. Ka7 {[%clk 0:00:07]}  d3 {[%clk 0:00:19]} 51. Bb5 {[%clk 0:00:06]}  d2 {[%clk 0:00:19]} 52. Be2 {[%clk 0:00:07]}  Nc6# {[%clk 0:00:19]} 0-1


[Site "https://www.chess.com"]

[Event "Titled Tuesday Blitz June 13 Early 2023"]
[White "Sailer, Mike"]
[Black "Parpiev, Isaak"]
[WhiteFideId "2012901"]
[BlackFideId "34281576"]
[WhiteElo "2109"]
[BlackElo "2167"]
[Result "0-1"]
[Round "3"]
[TimeControl "180+2"]
[Date "2023.06.13"]
[WhiteClock "0:00:00"]
[BlackClock "0:00:37"]
[Board "158"]

1. d4 {[%clk 0:01:43]}  Nf6 {[%clk 0:02:56]} 2. Bg5 {[%clk 0:01:43]}  d5 {[%clk 0:02:56]} 3. Bxf6 {[%clk 0:01:43]}  exf6 {[%clk 0:02:57]} 4. e3 {[%clk 0:01:43]}  c6 {[%clk 0:02:57]} 5. c4 {[%clk 0:01:44]}  Bd6 {[%clk 0:02:58]} 6. cxd5 {[%clk 0:01:44]}  cxd5 {[%clk 0:02:58]} 7. Nc3 {[%clk 0:01:45]}  Be6 {[%clk 0:02:57]} 8. Qb3 {[%clk 0:01:45]}  O-O {[%clk 0:02:53]} 9. Qxb7 {[%clk 0:01:45]}  Nd7 {[%clk 0:02:52]} 10. Qb3 {[%clk 0:01:45]}  Rb8 {[%clk 0:02:51]} 11. Qc2 {[%clk 0:01:45]}  Qa5 {[%clk 0:02:51]} 12. Bd3 {[%clk 0:01:45]}  h5 {[%clk 0:02:49]} 13. Ne2 {[%clk 0:01:43]}  h4 {[%clk 0:02:49]} 14. h3 {[%clk 0:01:43]}  Rfc8 {[%clk 0:02:48]} 15. O-O {[%clk 0:01:40]}  Nf8 {[%clk 0:02:48]} 16. Nf4 {[%clk 0:01:34]}  g5 {[%clk 0:02:26]} 17. Nxe6 {[%clk 0:01:33]}  Nxe6 {[%clk 0:02:23]} 18. Bf5 {[%clk 0:01:28]}  Kg7 {[%clk 0:02:21]} 19. Rfc1 {[%clk 0:01:13]}  Qb4 {[%clk 0:02:11]} 20. Rab1 {[%clk 0:01:10]}  Bc7 {[%clk 0:01:38]} 21. Qe2 {[%clk 0:01:04]}  Qd6 {[%clk 0:01:36]} 22. f4 {[%clk 0:00:55]}  gxf4 {[%clk 0:01:26]} 23. Qg4+ {[%clk 0:00:54]}  Kf8 {[%clk 0:01:10]} 24. Bxe6 {[%clk 0:00:53]}  Qxe6 {[%clk 0:01:00]} 25. Qxe6 {[%clk 0:00:44]}  fxe6 {[%clk 0:01:01]} 26. e4 {[%clk 0:00:28]}  Bb6 {[%clk 0:00:49]} 27. exd5 {[%clk 0:00:21]}  Bxd4+ {[%clk 0:00:49]} 28. Kf1 {[%clk 0:00:21]}  exd5 {[%clk 0:00:36]} 29. Nxd5 {[%clk 0:00:18]}  Rxc1+ {[%clk 0:00:36]} 30. Rxc1 {[%clk 0:00:18]}  Rxb2 {[%clk 0:00:37]} 31. Nxf4 {[%clk 0:00:11]}  Rf2+ {[%clk 0:00:36]} 32. Ke1 {[%clk 0:00:11]}  Rxf4 {[%clk 0:00:37]} 33. Rc8+ {[%clk 0:00:10]}  Kf7 {[%clk 0:00:37]} 34. Rc7+ {[%clk 0:00:00]}  Kg6 {[%clk 0:00:37]} 0-1


[Site "https://www.chess.com"]

[Event "Titled Tuesday Blitz June 13 Early 2023"]
[White "Lisjak, Zlatko"]
[Black "Liu, Casper"]
[WhiteFideId "14502186"]
[BlackFideId "1454153"]
[WhiteElo "1998"]
[BlackElo "2221"]
[Result "0-1"]
[Round "3"]
[TimeControl "180+2"]
[Date "2023.06.13"]
[WhiteClock "0:00:00"]
[BlackClock "0:01:42"]
[Board "161"]

1. e4 {[%clk 0:03:00]}  a6 {[%clk 0:02:59]} 2. d4 {[%clk 0:02:59]}  g6 {[%clk 0:03:00]} 3. Bd3 {[%clk 0:02:57]}  Bg7 {[%clk 0:03:01]} 4. Nf3 {[%clk 0:02:56]}  Nc6 {[%clk 0:03:01]} 5. c3 {[%clk 0:02:52]}  d5 {[%clk 0:03:01]} 6. e5 {[%clk 0:02:48]}  f6 {[%clk 0:03:02]} 7. Bf4 {[%clk 0:02:39]}  Bg4 {[%clk 0:03:00]} 8. exf6 {[%clk 0:02:32]}  Nxf6 {[%clk 0:03:01]} 9. h3 {[%clk 0:02:31]}  Bxf3 {[%clk 0:02:59]} 10. Qxf3 {[%clk 0:02:30]}  O-O {[%clk 0:03:00]} 11. Qe2 {[%clk 0:02:19]}  Kh8 {[%clk 0:02:57]} 12. g4 {[%clk 0:02:18]}  Ne4 {[%clk 0:02:54]} 13. Bxe4 {[%clk 0:02:01]}  Rxf4 {[%clk 0:02:48]} 14. Bc2 {[%clk 0:01:51]}  e5 {[%clk 0:02:48]} 15. dxe5 {[%clk 0:01:50]}  Nxe5 {[%clk 0:02:48]} 16. Nd2 {[%clk 0:01:51]}  Qh4 {[%clk 0:02:44]} 17. O-O-O {[%clk 0:01:24]}  Qxf2 {[%clk 0:02:43]} 18. Rhe1 {[%clk 0:01:19]}  Raf8 {[%clk 0:02:40]} 19. Nb3 {[%clk 0:01:16]}  Qxe2 {[%clk 0:02:37]} 20. Rxe2 {[%clk 0:01:15]}  Nc4 {[%clk 0:02:38]} 21. Rxd5 {[%clk 0:01:10]}  Rf3 {[%clk 0:02:31]} 22. Nc5 {[%clk 0:01:01]}  Rxh3 {[%clk 0:02:25]} 23. Nxb7 {[%clk 0:00:55]}  Ne3 {[%clk 0:02:21]} 24. Rd7 {[%clk 0:00:47]}  Bh6 {[%clk 0:02:18]} 25. b3 {[%clk 0:00:35]}  Nc4+ {[%clk 0:02:07]} 26. Kb1 {[%clk 0:00:30]}  Rf1+ {[%clk 0:02:04]} 27. Rd1 {[%clk 0:00:28]}  Rxd1+ {[%clk 0:01:46]} 28. Bxd1 {[%clk 0:00:27]}  Ne3 {[%clk 0:01:45]} 29. Bc2 {[%clk 0:00:24]}  Nxg4 {[%clk 0:01:40]} 30. Re8+ {[%clk 0:00:18]}  Kg7 {[%clk 0:01:40]} 31. Re7+ {[%clk 0:00:18]}  Kf6 {[%clk 0:01:40]} 32. Rxc7 {[%clk 0:00:18]}  Rh1+ {[%clk 0:01:41]} 33. Kb2 {[%clk 0:00:17]}  Bc1+ {[%clk 0:01:41]} 34. Kb1 {[%clk 0:00:00]}  Bf4+ {[%clk 0:01:42]} 0-1


[Site "https://www.chess.com"]

[Event "Titled Tuesday Blitz June 13 Early 2023"]
[White "Kriti Mayur Patel"]
[Black "Jaskolka, Tomasz"]
[WhiteFideId "35061780"]
[BlackFideId "1170791"]
[WhiteElo "1306"]
[BlackElo "2155"]
[Result "0-1"]
[Round "3"]
[TimeControl "180+2"]
[Date "2023.06.13"]
[WhiteClock "0:00:13"]
[BlackClock "0:01:10"]
[Board "162"]

1. e4 {[%clk 0:02:59]}  d5 {[%clk 0:03:00]} 2. exd5 {[%clk 0:02:59]}  Nf6 {[%clk 0:03:00]} 3. Nf3 {[%clk 0:02:57]}  Bg4 {[%clk 0:03:01]} 4. Be2 {[%clk 0:02:53]}  Nxd5 {[%clk 0:03:00]} 5. d4 {[%clk 0:02:52]}  e6 {[%clk 0:03:00]} 6. c4 {[%clk 0:02:49]}  Nf6 {[%clk 0:02:59]} 7. Nc3 {[%clk 0:02:49]}  c6 {[%clk 0:02:59]} 8. O-O {[%clk 0:02:49]}  Be7 {[%clk 0:03:00]} 9. Bf4 {[%clk 0:02:48]}  Nbd7 {[%clk 0:03:00]} 10. Rc1 {[%clk 0:02:38]}  O-O {[%clk 0:03:00]} 11. Ne5 {[%clk 0:02:35]}  Nxe5 {[%clk 0:02:56]} 12. Bxe5 {[%clk 0:02:32]}  Bf5 {[%clk 0:02:52]} 13. Bd3 {[%clk 0:02:27]}  Bg6 {[%clk 0:02:38]} 14. f4 {[%clk 0:02:24]}  c5 {[%clk 0:02:26]} 15. Bxg6 {[%clk 0:02:15]}  hxg6 {[%clk 0:02:25]} 16. Kh1 {[%clk 0:02:15]}  cxd4 {[%clk 0:02:23]} 17. Qxd4 {[%clk 0:01:58]}  Qc8 {[%clk 0:02:10]} 18. Nb5 {[%clk 0:01:52]}  Rd8 {[%clk 0:02:07]} 19. Qc3 {[%clk 0:01:40]}  Qc5 {[%clk 0:01:58]} 20. b4 {[%clk 0:01:33]}  Qxb4 {[%clk 0:01:51]} 21. Bxf6 {[%clk 0:01:17]}  gxf6 {[%clk 0:01:51]} 22. Qh3 {[%clk 0:01:15]}  Kg7 {[%clk 0:01:48]} 23. Qg3 {[%clk 0:00:50]}  a6 {[%clk 0:01:37]} 24. Nc3 {[%clk 0:00:35]}  Qxc4 {[%clk 0:01:36]} 25. h4 {[%clk 0:00:30]}  Rac8 {[%clk 0:01:22]} 26. h5 {[%clk 0:00:24]}  Rh8 {[%clk 0:01:20]} 27. Kg1 {[%clk 0:00:19]}  Bc5+ {[%clk 0:01:18]} 28. Rf2 {[%clk 0:00:13]}  Rxh5 {[%clk 0:01:18]} 29. Ne4 {[%clk 0:00:13]}  Qxc1# {[%clk 0:01:10]} 0-1


[Site "https://www.chess.com"]

[Event "Titled Tuesday Blitz June 13 Early 2023"]
[White "Semenova, Alina"]
[Black "Brunner, Nicolas"]
[WhiteFideId "24113875"]
[BlackFideId "620246"]
[WhiteElo "1833"]
[BlackElo "2319"]
[Result "0-1"]
[Round "3"]
[TimeControl "180+2"]
[Date "2023.06.13"]
[WhiteClock "0:00:00"]
[BlackClock "0:00:24"]
[Board "163"]

1. e4 {[%clk 0:02:59]}  e5 {[%clk 0:02:59]} 2. Nf3 {[%clk 0:02:59]}  Nf6 {[%clk 0:03:00]} 3. Nxe5 {[%clk 0:03:00]}  d6 {[%clk 0:03:00]} 4. Nf3 {[%clk 0:03:00]}  Nxe4 {[%clk 0:03:00]} 5. d4 {[%clk 0:03:00]}  d5 {[%clk 0:02:59]} 6. Bd3 {[%clk 0:03:01]}  Bf5 {[%clk 0:03:00]} 7. O-O {[%clk 0:03:01]}  Be7 {[%clk 0:03:00]} 8. c4 {[%clk 0:02:59]}  dxc4 {[%clk 0:03:00]} 9. Bxc4 {[%clk 0:02:58]}  O-O {[%clk 0:03:00]} 10. Nc3 {[%clk 0:02:58]}  Nd6 {[%clk 0:02:58]} 11. Bd3 {[%clk 0:02:56]}  Bxd3 {[%clk 0:02:56]} 12. Qxd3 {[%clk 0:02:57]}  Nc6 {[%clk 0:02:55]} 13. a3 {[%clk 0:02:53]}  Bf6 {[%clk 0:02:54]} 14. Re1 {[%clk 0:02:45]}  h6 {[%clk 0:02:52]} 15. Bf4 {[%clk 0:02:44]}  Qd7 {[%clk 0:02:25]} 16. d5 {[%clk 0:02:33]}  Ne7 {[%clk 0:02:24]} 17. Be5 {[%clk 0:02:24]}  Bxe5 {[%clk 0:02:18]} 18. Nxe5 {[%clk 0:02:25]}  Qf5 {[%clk 0:02:18]} 19. Qxf5 {[%clk 0:02:25]}  Nexf5 {[%clk 0:02:17]} 20. Rad1 {[%clk 0:02:20]}  Rfe8 {[%clk 0:02:17]} 21. f4 {[%clk 0:02:13]}  f6 {[%clk 0:02:04]} 22. Nd3 {[%clk 0:01:55]}  Kf7 {[%clk 0:01:59]} 23. Nc5 {[%clk 0:01:53]}  Ne3 {[%clk 0:01:51]} 24. Rd3 {[%clk 0:01:44]}  Nec4 {[%clk 0:01:43]} 25. Rxe8 {[%clk 0:01:43]}  Rxe8 {[%clk 0:01:43]} 26. Ne6 {[%clk 0:00:57]}  Nxb2 {[%clk 0:01:41]} 27. Rd4 {[%clk 0:00:57]}  Re7 {[%clk 0:01:31]} 28. g4 {[%clk 0:00:45]}  Nbc4 {[%clk 0:01:28]} 29. a4 {[%clk 0:00:44]}  b6 {[%clk 0:00:59]} 30. f5 {[%clk 0:00:28]}  a5 {[%clk 0:00:57]} 31. Kf2 {[%clk 0:00:20]}  g6 {[%clk 0:00:57]} 32. fxg6+ {[%clk 0:00:20]}  Kxg6 {[%clk 0:00:57]} 33. Kf3 {[%clk 0:00:17]}  f5 {[%clk 0:00:54]} 34. gxf5+ {[%clk 0:00:15]}  Nxf5 {[%clk 0:00:53]} 35. Rg4+ {[%clk 0:00:15]}  Kf6 {[%clk 0:00:51]} 36. Ne4+ {[%clk 0:00:15]}  Ke5 {[%clk 0:00:50]} 37. Nc3 {[%clk 0:00:04]}  Ncd6 {[%clk 0:00:47]} 38. Rg2 {[%clk 0:00:02]}  Nd4+ {[%clk 0:00:45]} 39. Ke3 {[%clk 0:00:02]}  Nxe6 {[%clk 0:00:45]} 40. dxe6 {[%clk 0:00:02]}  Rxe6 {[%clk 0:00:45]} 41. Kd3 {[%clk 0:00:02]}  Kf6 {[%clk 0:00:42]} 42. Nd5+ {[%clk 0:00:02]}  Kf7 {[%clk 0:00:42]} 43. Nxc7 {[%clk 0:00:02]}  Re5 {[%clk 0:00:39]} 44. Rf2+ {[%clk 0:00:02]}  Kg7 {[%clk 0:00:38]} 45. Rb2 {[%clk 0:00:02]}  Rh5 {[%clk 0:00:26]} 46. Rxb6 {[%clk 0:00:01]}  Nf7 {[%clk 0:00:24]} 47. Ne6+ {[%clk 0:00:00]}  Kh7 {[%clk 0:00:24]} 0-1


[Site "https://www.chess.com"]

[Event "Titled Tuesday Blitz June 13 Early 2023"]
[White "Vargas, Mauricio"]
[Black "Garakov, Mikhael"]
[WhiteFideId "4404572"]
[BlackFideId "4169034"]
[WhiteElo "1986"]
[BlackElo "2347"]
[Result "0-1"]
[Round "3"]
[TimeControl "180+2"]
[Date "2023.06.13"]
[WhiteClock "0:00:00"]
[BlackClock "0:00:20"]
[Board "164"]

1. e4 {[%clk 0:03:00]}  c5 {[%clk 0:02:59]} 2. Nc3 {[%clk 0:02:59]}  a6 {[%clk 0:02:59]} 3. f4 {[%clk 0:03:00]}  b5 {[%clk 0:02:58]} 4. Nf3 {[%clk 0:03:01]}  Bb7 {[%clk 0:02:58]} 5. d3 {[%clk 0:02:54]}  g6 {[%clk 0:02:58]} 6. Nd5 {[%clk 0:02:54]}  Bg7 {[%clk 0:02:56]} 7. Ne3 {[%clk 0:02:51]}  e6 {[%clk 0:02:53]} 8. g4 {[%clk 0:02:48]}  Ne7 {[%clk 0:02:50]} 9. Bg2 {[%clk 0:02:47]}  d5 {[%clk 0:02:44]} 10. e5 {[%clk 0:02:47]}  d4 {[%clk 0:02:43]} 11. Nf1 {[%clk 0:02:37]}  h5 {[%clk 0:02:43]} 12. g5 {[%clk 0:02:37]}  h4 {[%clk 0:02:41]} 13. h3 {[%clk 0:02:35]}  Nf5 {[%clk 0:02:41]} 14. N1h2 {[%clk 0:02:30]}  Ng3 {[%clk 0:02:39]} 15. Rg1 {[%clk 0:02:24]}  Nc6 {[%clk 0:02:37]} 16. Ng4 {[%clk 0:02:21]}  Ne7 {[%clk 0:02:37]} 17. Nf6+ {[%clk 0:02:20]}  Bxf6 {[%clk 0:02:36]} 18. gxf6 {[%clk 0:02:00]}  Nd5 {[%clk 0:02:23]} 19. Kf2 {[%clk 0:01:59]}  Nf5 {[%clk 0:02:17]} 20. Bd2 {[%clk 0:01:50]}  Nfe3 {[%clk 0:02:16]} 21. Qc1 {[%clk 0:01:25]}  Rh5 {[%clk 0:01:55]} 22. Ng5 {[%clk 0:01:24]}  Qc7 {[%clk 0:00:34]} 23. Bf3 {[%clk 0:01:14]}  Rxg5 {[%clk 0:00:27]} 24. Rxg5 {[%clk 0:01:00]}  Nxf4 {[%clk 0:00:27]} 25. Rg4 {[%clk 0:00:11]}  Qxe5 {[%clk 0:00:21]} 26. Bxb7 {[%clk 0:00:10]}  Nxh3+ {[%clk 0:00:20]} 27. Ke2 {[%clk 0:00:00]}  Nxg4+ {[%clk 0:00:20]} 0-1


[Site "https://www.chess.com"]

[Event "Titled Tuesday Blitz June 13 Early 2023"]
[White "carokannlover213"]
[Black "Gutkin, Ilya"]
[BlackFideId "16203470"]
[WhiteElo "2748"]
[BlackElo "2248"]
[Result "1-0"]
[Round "3"]
[TimeControl "180+2"]
[Date "2023.06.13"]
[WhiteClock "0:01:32"]
[BlackClock "0:01:18"]
[Board "166"]

1. c4 {[%clk 0:02:59]}  b6 {[%clk 0:02:49]} 2. Nc3 {[%clk 0:02:54]}  Bb7 {[%clk 0:02:50]} 3. Nf3 {[%clk 0:02:54]}  e6 {[%clk 0:02:50]} 4. e4 {[%clk 0:02:53]}  Bb4 {[%clk 0:02:49]} 5. Qc2 {[%clk 0:02:46]}  Ne7 {[%clk 0:02:46]} 6. d3 {[%clk 0:02:42]}  Ng6 {[%clk 0:02:45]} 7. h4 {[%clk 0:02:37]}  d5 {[%clk 0:02:41]} 8. a3 {[%clk 0:02:27]}  Bxc3+ {[%clk 0:02:40]} 9. Qxc3 {[%clk 0:02:28]}  dxe4 {[%clk 0:02:25]} 10. dxe4 {[%clk 0:02:27]}  Qf6 {[%clk 0:02:23]} 11. e5 {[%clk 0:02:03]}  Qf5 {[%clk 0:02:16]} 12. h5 {[%clk 0:01:37]}  Nf4 {[%clk 0:01:40]} 13. Bxf4 {[%clk 0:01:37]}  Qxf4 {[%clk 0:01:40]} 14. Rh4 {[%clk 0:01:37]}  Qf5 {[%clk 0:01:18]} 15. Bd3 {[%clk 0:01:32]} 1-0


[Site "https://www.chess.com"]

[Event "Titled Tuesday Blitz June 13 Early 2023"]
[White "Sharapov, Evgeny"]
[Black "Vifleemskaia, Svetlana"]
[WhiteFideId "14103133"]
[BlackFideId "4129490"]
[WhiteElo "2367"]
[BlackElo "1930"]
[Result "1-0"]
[Round "3"]
[TimeControl "180+2"]
[Date "2023.06.13"]
[WhiteClock "0:00:38"]
[BlackClock "0:00:00"]
[Board "169"]

1. e4 {[%clk 0:02:59]}  e5 {[%clk 0:02:56]} 2. Nf3 {[%clk 0:02:59]}  Nc6 {[%clk 0:02:55]} 3. Bb5 {[%clk 0:02:59]}  a6 {[%clk 0:02:55]} 4. Ba4 {[%clk 0:03:00]}  Nf6 {[%clk 0:02:54]} 5. d3 {[%clk 0:03:00]}  d6 {[%clk 0:02:51]} 6. O-O {[%clk 0:02:59]}  g6 {[%clk 0:02:52]} 7. c3 {[%clk 0:02:59]}  Bg7 {[%clk 0:02:52]} 8. d4 {[%clk 0:02:59]}  O-O {[%clk 0:02:50]} 9. Re1 {[%clk 0:02:58]}  b5 {[%clk 0:02:46]} 10. Bb3 {[%clk 0:02:57]}  Bg4 {[%clk 0:02:33]} 11. Be3 {[%clk 0:02:56]}  Na5 {[%clk 0:02:22]} 12. Bc2 {[%clk 0:02:52]}  Nc4 {[%clk 0:02:19]} 13. Bc1 {[%clk 0:02:51]}  c5 {[%clk 0:02:06]} 14. d5 {[%clk 0:02:51]}  b4 {[%clk 0:01:46]} 15. b3 {[%clk 0:02:48]}  Nb6 {[%clk 0:01:46]} 16. c4 {[%clk 0:02:44]}  a5 {[%clk 0:01:45]} 17. Bg5 {[%clk 0:02:35]}  h6 {[%clk 0:01:39]} 18. Be3 {[%clk 0:02:35]}  a4 {[%clk 0:01:35]} 19. Nbd2 {[%clk 0:02:22]}  axb3 {[%clk 0:01:34]} 20. axb3 {[%clk 0:02:22]}  Rxa1 {[%clk 0:01:34]} 21. Qxa1 {[%clk 0:02:21]}  Qa8 {[%clk 0:01:34]} 22. h3 {[%clk 0:02:19]}  Bd7 {[%clk 0:01:32]} 23. Qb2 {[%clk 0:02:06]}  Qb7 {[%clk 0:01:30]} 24. Ra1 {[%clk 0:02:06]}  Ra8 {[%clk 0:01:29]} 25. Ra2 {[%clk 0:02:04]}  Rxa2 {[%clk 0:01:29]} 26. Qxa2 {[%clk 0:02:04]}  Qa8 {[%clk 0:01:30]} 27. Qxa8+ {[%clk 0:02:03]}  Nxa8 {[%clk 0:01:29]} 28. Kf1 {[%clk 0:01:57]}  Ne8 {[%clk 0:01:21]} 29. Ke2 {[%clk 0:01:57]}  Kf8 {[%clk 0:01:17]} 30. Ne1 {[%clk 0:01:52]}  Nac7 {[%clk 0:01:11]} 31. h4 {[%clk 0:01:52]}  f5 {[%clk 0:01:08]} 32. exf5 {[%clk 0:01:44]}  gxf5 {[%clk 0:01:09]} 33. f3 {[%clk 0:01:43]}  Kf7 {[%clk 0:00:56]} 34. g3 {[%clk 0:01:43]}  Nf6 {[%clk 0:00:54]} 35. Ng2 {[%clk 0:01:38]}  Ncxd5 {[%clk 0:00:32]} 36. cxd5 {[%clk 0:01:37]}  Nxd5 {[%clk 0:00:33]} 37. Nc4 {[%clk 0:01:29]}  Ke7 {[%clk 0:00:27]} 38. Bd2 {[%clk 0:01:24]}  Nf6 {[%clk 0:00:22]} 39. Nge3 {[%clk 0:01:19]}  e4 {[%clk 0:00:16]} 40. fxe4 {[%clk 0:01:11]}  fxe4 {[%clk 0:00:17]} 41. Nb6 {[%clk 0:01:05]}  Be6 {[%clk 0:00:13]} 42. g4 {[%clk 0:00:59]}  d5 {[%clk 0:00:09]} 43. g5 {[%clk 0:00:59]}  hxg5 {[%clk 0:00:07]} 44. hxg5 {[%clk 0:00:59]}  d4 {[%clk 0:00:02]} 45. gxf6+ {[%clk 0:00:59]}  Bxf6 {[%clk 0:00:03]} 46. Nec4 {[%clk 0:00:43]}  d3+ {[%clk 0:00:02]} 47. Bxd3 {[%clk 0:00:43]}  exd3+ {[%clk 0:00:03]} 48. Kxd3 {[%clk 0:00:43]}  Bd4 {[%clk 0:00:01]} 49. Be3 {[%clk 0:00:39]}  Bxe3 {[%clk 0:00:00]} 50. Kxe3 {[%clk 0:00:38]} 1-0


[Site "https://www.chess.com"]